bitfinex/quotes_SOLUSD_20250108
["timestamp","ask_amount","ask_price","bid_price","bid_amount"]
[1736352537540,13.48567765,197.99,197.86,23.776884]
[1736352537700,13.48567765,197.99,197.87,0.75763318]
[1736352538209,20.0,197.96,197.84,7.1376]
[1736352538413,20.0,197.96,197.84,7.89533034]
[1736352539107,20.0,197.95,197.84,7.89533034]
[1736352539318,20.0,197.95,197.84,7.1376]
[1736352539516,20.0,197.91,197.84,7.1376]
[1736352540004,20.0,197.93,197.84,7.1376]
[1736352540833,20.0,197.93,197.85,0.75777429]
[1736352541224,13.48567765,197.99,197.85,0.75777429]
[1736352541420,20.0,197.96,197.85,0.75777429]
[1736352541737,13.48567765,197.99,197.84,7.1376]
[1736352541738,20.0,197.95,197.84,7.1376]
[1736352541945,20.0,197.93,197.84,7.1376]
[1736352542112,20.0,197.91,197.84,7.1376]
[1736352544005,20.0,197.89,197.84,7.1376]
[1736352544208,30.0,197.9,197.84,7.1376]
[1736352544420,20.0,197.87,197.84,7.1376]
[1736352546327,30.0,197.9,197.84,7.1376]
[1736352546328,37.1376,197.94,197.84,7.1376]
[1736352546525,7.1376,197.94,197.84,7.1376]
[1736352546726,253.32541463,197.97,197.84,7.89551556]
[1736352547266,20.0,197.94,197.84,7.89551556]
[1736352547626,20.0,197.94,197.84,7.1376]
[1736352547957,20.0,197.92,197.84,7.1376]
[1736352550027,253.32541463,197.97,197.84,7.1376]
[1736352550228,43.48567765,197.99,197.84,7.1376]
[1736352550229,13.48567765,197.99,197.84,7.1376]
[1736352550542,20.0,197.96,197.84,7.1376]
[1736352550925,43.48567765,197.99,197.84,7.1376]
[1736352551131,13.48567765,197.99,197.85,23.776884]
[1736352551325,30.0,198.01,197.85,23.776884]
[1736352551748,20.0,197.98,197.85,23.776884]
[1736352551932,20.0,197.96,197.84,7.1376]
[1736352552128,20.0,197.94,197.84,7.1376]
[1736352554031,50.0,197.94,197.84,7.1376]
[1736352554769,20.0,197.88,197.84,7.1376]
[1736352556069,20.0,197.9,197.84,7.1376]
[1736352556857,20.0,197.92,197.84,7.1376]
[1736352557227,50.0,197.92,197.84,7.1376]
[1736352558664,20.0,197.85,197.84,7.1376]
[1736352559046,20.0,197.89,197.84,7.1376]
[1736352559638,20.0,197.91,197.84,7.1376]
[1736352559839,20.0,197.89,197.84,7.1376]
[1736352560760,50.0,197.89,197.84,7.1376]
[1736352562668,20.0,197.84,197.79,7.4801]
[1736352563680,20.0,197.8,197.65,138.5]
[1736352563842,20.0,197.81,197.74,6.8822]
[1736352564765,30.0,197.86,197.74,6.8822]
[1736352565143,20.0,197.83,197.74,6.8822]
[1736352566574,50.0,197.83,197.74,6.8822]
[1736352566877,20.0,197.8,197.74,6.8822]
[1736352567283,20.0,197.82,197.74,6.8822]
[1736352567469,20.0,197.8,197.74,6.8822]
[1736352568067,20.0,197.78,197.74,6.8822]
[1736352568264,20.0,197.76,197.74,6.8822]
[1736352568757,20.0,197.72,197.69,7.0807]
[1736352571068,20.0,197.72,197.62,1.7846]
[1736352571069,20.0,197.7,197.63,7.4012]
[1736352573201,40.280318,197.7,197.63,7.4012]
[1736352573387,30.0,197.75,197.63,7.4012]
[1736352573591,20.0,197.72,197.63,7.4012]
[1736352574593,20.0,197.68,197.63,7.4012]
[1736352575184,20.0,197.75,197.63,7.4012]
[1736352575373,20.0,197.71,197.63,7.4012]
[1736352577303,20.0,197.75,197.64,23.776884]
[1736352577597,20.0,197.75,197.63,227.5012]
[1736352578702,50.0,197.75,197.63,227.5012]
[1736352579196,70.274713,197.75,197.63,227.5012]
[1736352579492,40.274713,197.75,197.63,227.5012]
[1736352580170,20.0,197.71,197.63,7.4012]
[1736352580597,20.0,197.69,197.63,7.4012]
[1736352581992,20.0,197.67,197.63,7.4012]
[1736352582391,20.0,197.69,197.63,7.4012]
[1736352582712,20.0,197.67,197.63,7.4012]
[1736352583186,30.0,197.71,197.63,7.4012]
[1736352583386,20.0,197.68,197.63,7.4012]
[1736352583912,20.0,197.66,197.63,7.4012]
[1736352584481,20.0,197.68,197.63,7.4012]
[1736352585185,81.3,197.72,197.63,7.4012]
[1736352585785,20.0,197.69,197.63,7.4012]
[1736352586591,52.008413,197.75,197.63,7.4012]
[1736352586592,101.574713,197.75,197.63,7.4012]
[1736352587125,30.0,197.74,197.63,7.4012]
[1736352587287,20.0,197.71,197.63,7.4012]
[1736352588422,20.0,197.68,197.63,7.4012]
[1736352588991,20.0,197.7,197.63,7.4012]
[1736352589188,101.574713,197.75,197.63,7.4012]
[1736352589413,20.274713,197.75,197.63,7.4012]
[1736352589593,50.274713,197.75,197.63,7.4012]
[1736352590017,20.0,197.72,197.63,7.4012]
[1736352591088,131.3,197.72,197.63,7.4012]
[1736352591289,20.0,197.69,197.63,7.4012]
[1736352591521,111.3,197.72,197.63,7.4012]
[1736352591522,20.0,197.67,197.63,7.4012]
[1736352594304,20.0,197.65,197.63,7.4012]
[1736352594906,20.0,197.66,197.63,7.4012]
[1736352595115,20.0,197.65,197.63,7.4012]
[1736352595614,20.0,197.66,197.63,7.4012]
[1736352598121,20.0,197.71,197.63,7.4012]
[1736352598823,101.574713,197.75,197.63,7.4012]
[1736352599023,20.274713,197.75,197.64,0.75863782]
[1736352599332,81.3,197.79,197.64,0.75863782]
[1736352599495,20.0,197.76,197.64,0.75863782]
[1736352600698,20.0,197.73,197.64,81.6]
[1736352601692,20.273032,197.76,197.64,81.6]
[1736352601898,20.0,197.73,197.64,81.6]
[1736352602119,20.0,197.73,197.66,1.8222]
[1736352602410,81.3,197.79,197.68,6.8029]
[1736352602597,81.3,197.79,197.69,0.75836077]
[1736352602997,20.268687,197.8,197.69,82.35836077]
[1736352603200,81.3,197.84,197.71,1.8222]
[1736352603540,30.0,197.87,197.72,7.1014]
[1736352603816,81.3,197.89,197.73,139.25823433]
[1736352604023,7.77377847,197.91,197.76,162.276884]
[1736352604216,21.09990903,197.92,197.78,7.347]
[1736352604408,20.0,197.89,197.79,0.75800347]
[1736352605621,41.35837703,197.92,197.79,0.75800347]
[1736352606202,20.0,197.89,197.79,0.75800347]
[1736352607328,20.0,197.89,197.78,7.347]
[1736352607634,20.0,197.89,197.78,8.10508452]
[1736352607809,20.0,197.89,197.79,23.776884]
[1736352608402,20.0,197.89,197.78,145.847]
[1736352609519,20.0,197.89,197.8,243.876884]
[1736352609825,81.3,197.94,197.82,1.7308]
[1736352610028,81.3,197.94,197.83,7.1709]
[1736352610200,20.0,197.91,197.83,7.1709]
[1736352610395,20.0,197.9,197.83,7.1709]
[1736352613601,20.0,197.95,197.83,228.02881541]
[1736352613818,81.3,197.98,197.83,227.2709]
[1736352614123,20.0,197.95,197.83,227.2709]
[1736352614699,20.0,197.95,197.84,23.776884]
[1736352614913,20.0,197.95,197.84,24.53464119]
[1736352615118,20.0,197.95,197.85,8.732]
[1736352616527,20.0,197.95,197.86,23.776884]
[1736352616730,30.0,198.07,197.89,1.7799]
[1736352616928,81.3,198.08,197.9,251.50494347]
[1736352617134,81.3,198.08,197.9,250.747384]
[1736352617308,20.0,198.05,197.9,250.747384]
[1736352617511,81.3,198.08,197.9,250.747384]
[1736352617825,81.3,198.08,197.93,7.0514]
[1736352618012,30.0,198.11,197.94,24.5342487]
[1736352618216,20.0,198.08,197.94,24.5342487]
[1736352618427,30.0,198.11,197.94,23.776884]
[1736352618622,30.0,198.11,197.96,7.0514]
[1736352618831,81.3,198.14,197.97,23.776884]
[1736352619035,20.0,198.11,197.98,0.75721461]
[1736352619237,20.0,198.11,197.99,23.776884]
[1736352619538,20.0,198.13,197.99,23.776884]
[1736352620039,30.0,198.13,197.96,7.0514]
[1736352620334,30.0,198.13,197.97,23.776884]
[1736352620836,101.538467,198.16,197.99,23.776884]
[1736352621041,81.3,198.16,198.0,7.1235]
[1736352621237,283.57430526,198.17,198.01,25.502984]
[1736352621644,30.0,198.19,198.01,25.502984]
[1736352621943,30.0,198.21,198.04,6.8006]
[1736352622444,30.0,198.16,198.04,6.8006]
[1736352622941,20.0,198.13,198.04,6.8006]
[1736352623118,20.0,198.11,198.04,6.8006]
[1736352624128,20.0,198.12,198.04,6.8006]
[1736352624329,81.3,198.15,198.04,6.8006]
[1736352624527,20.0,198.12,198.04,6.8006]
[1736352626515,20.0,198.1,198.04,6.8006]
[1736352626751,20.0,198.07,198.04,6.8006]
[1736352629044,20.0,198.07,198.01,1.7261]
[1736352629045,20.0,198.06,198.01,1.7261]
[1736352629640,81.3,198.1,198.01,1.7261]
[1736352629641,20.0,198.07,198.01,1.7261]
[1736352632546,20.0,198.12,198.01,1.7261]
[1736352632933,20.0,198.12,198.01,2.4832789]
[1736352633147,2.67382096,198.21,198.03,23.776884]
[1736352633148,30.0,198.2,198.03,23.776884]
[1736352633333,0.92682096,198.21,198.06,7.0936]
[1736352633650,0.92682096,198.21,198.06,7.85057263]
[1736352633942,20.0,198.19,198.06,7.85057263]
[1736352634449,20.0,198.19,198.06,7.0936]
[1736352634653,20.0,198.15,198.06,7.0936]
[1736352636049,20.0,198.17,198.06,7.0936]
[1736352636922,20.0,198.19,198.06,7.0936]
[1736352637227,20.0,198.17,198.06,7.0936]
[1736352639140,50.0,198.17,198.06,7.0936]
[1736352639352,20.0,198.16,198.06,7.0936]
[1736352640021,20.0,198.18,198.06,7.0936]
[1736352640631,20.0,198.19,198.06,7.0936]
[1736352641218,20.0,198.2,198.06,7.0936]
[1736352642758,20.0,198.2,198.07,0.7569086]
[1736352645336,20.0,198.2,198.07,23.776884]
[1736352649065,20.0,198.2,198.06,7.0936]
[1736352649231,50.0,198.2,198.06,7.0936]
[1736352650073,20.0,198.15,198.06,7.0936]
[1736352650453,20.0,198.13,198.06,7.0936]
[1736352657358,20.0,198.15,198.06,7.0936]
[1736352658989,20.0,198.13,198.06,7.0936]
[1736352659585,50.0,198.13,198.06,7.0936]
[1736352659980,50.0,198.13,197.96,138.5]
[1736352659981,20.0,198.06,197.96,7.28]
[1736352660284,20.0,198.04,197.96,7.28]
[1736352660882,20.0,198.06,197.96,7.28]
[1736352661285,20.0,198.08,197.96,7.28]
[1736352662869,20.0,198.09,197.96,7.28]
[1736352663184,20.0,198.08,197.96,7.28]
[1736352663756,20.0,198.09,197.96,7.28]
[1736352663951,20.0,198.08,197.96,7.28]
[1736352664880,20.0,198.08,197.97,23.776884]
[1736352665685,20.0,198.07,197.97,23.776884]
[1736352667087,20.0,198.08,197.97,23.776884]
[1736352667782,20.0,198.07,197.97,23.776884]
[1736352668493,20.0,198.06,197.96,7.28]
[1736352668863,20.0,198.02,197.96,7.28]
[1736352669283,20.0,198.01,197.96,7.28]
[1736352670997,7.77377847,198.07,197.97,23.776884]
[1736352673000,20.0,198.04,197.96,7.28]
[1736352674005,27.77377847,198.04,197.96,7.28]
[1736352675292,7.77377847,198.02,197.96,7.28]
[1736352675790,20.0,198.02,197.96,7.28]
[1736352676367,20.0,198.03,197.96,7.28]
[1736352677066,20.0,198.04,197.96,7.28]
[1736352678677,20.0,198.03,197.96,7.28]
[1736352679265,20.0,198.02,197.96,7.28]
[1736352679877,20.0,198.03,197.96,7.28]
[1736352680987,20.0,198.04,197.96,7.28]
[1736352682105,20.0,198.04,197.97,23.776884]
[1736352682881,20.0,198.06,197.97,23.776884]
[1736352683978,20.0,198.07,197.97,23.776884]
[1736352685292,20.0,198.07,197.98,1.8086]
[1736352685805,20.0,198.07,197.99,23.776884]
[1736352687104,20.0,198.07,197.98,1.8086]
[1736352687311,20.0,198.06,197.98,1.8086]
[1736352687994,20.0,198.04,197.98,1.8086]
[1736352688183,20.0,198.04,197.96,7.28]
[1736352688688,20.0,198.02,197.96,7.28]
[1736352689884,20.0,198.03,197.96,7.28]
[1736352691505,20.0,198.02,197.96,7.28]
[1736352692203,20.0,198.02,197.97,23.776884]
[1736352692386,20.0,198.03,197.97,23.776884]
[1736352692587,20.0,198.03,197.96,7.28]
[1736352693089,20.0,198.05,197.96,7.28]
[1736352693490,27.77377847,198.05,197.96,7.28]
[1736352696009,27.77377847,198.05,197.92,7.4595]
[1736352696308,73.32133542,198.05,197.92,7.4595]
[1736352696516,20.0,198.01,197.92,7.4595]
[1736352696887,20.0,198.0,197.92,7.4595]
[1736352698010,20.0,198.0,197.93,23.776884]
[1736352698603,20.0,197.98,197.93,23.776884]
[1736352699314,7.77377847,198.03,197.93,23.776884]
[1736352699315,20.0,198.0,197.93,23.776884]
[1736352699684,20.0,198.01,197.93,23.776884]
[1736352701387,20.0,198.01,197.93,24.53440531]
[1736352701595,7.77377847,198.04,197.97,23.776884]
[1736352701895,7.77377847,198.04,197.97,24.53420351]
[1736352702398,7.77377847,198.07,197.97,24.53420351]
[1736352702716,7.77377847,198.07,197.99,31.271284]
[1736352702899,20.0,198.04,198.01,23.776884]
[1736352703220,20.0,198.04,198.0,220.1]
[1736352703512,20.0,198.05,198.0,220.1]
[1736352703710,20.0,198.04,198.0,220.1]
[1736352704427,20.0,198.04,198.01,23.776884]
[1736352704918,20.0,198.05,198.01,23.776884]
[1736352705417,20.0,198.05,198.0,220.1]
[1736352706115,20.0,198.04,198.0,220.1]
[1736352706708,20.0,198.04,197.99,7.4944]
[1736352707011,20.0,198.03,197.99,7.4944]
[1736352707208,20.0,198.03,197.94,6.9887]
[1736352707719,20.0,197.99,197.94,6.9887]
[1736352710501,20.0,197.98,197.94,6.9887]
[1736352711599,20.0,197.97,197.94,6.9887]
[1736352712500,20.0,197.98,197.94,6.9887]
[1736352713306,20.0,197.98,197.89,7.4801]
[1736352714024,27.77377847,197.98,197.89,7.4801]
[1736352717099,20.0,197.93,197.84,7.154]
[1736352717796,15.54755695,197.97,197.84,7.154]
[1736352717797,20.0,197.91,197.84,7.154]
[1736352718527,20.0,197.92,197.84,7.154]
[1736352719439,20.0,197.92,197.85,23.776884]
[1736352719605,20.0,197.92,197.85,24.53482425]
[1736352719806,7.77377847,197.97,197.85,24.53482425]
[1736352720006,20.0,197.94,197.85,24.53482425]
[1736352720810,20.0,197.97,197.85,24.53482425]
[1736352721135,20.0,197.97,197.85,23.776884]
[1736352721442,20.0,197.95,197.85,23.776884]
[1736352723021,20.0,197.96,197.85,23.776884]
[1736352724955,20.0,197.96,197.84,145.654]
[1736352725116,20.0,197.94,197.84,7.154]
[1736352726562,20.0,197.91,197.84,7.154]
[1736352726845,20.0,197.91,197.79,81.6]
[1736352727056,20.0,197.9,197.79,88.7743]
[1736352727353,20.0,197.88,197.79,7.1743]
[1736352728052,20.0,197.86,197.79,7.1743]
[1736352728390,20.0,197.86,197.73,8.9514]
[1736352728657,81.3,197.91,197.73,8.9514]
[1736352728658,20.0,197.84,197.73,8.9514]
[1736352729760,20.0,197.82,197.73,8.9514]
[1736352730132,50.0,197.82,197.68,8.9514]
[1736352732479,20.0,197.77,197.68,8.9514]
[1736352732675,20.0,197.75,197.68,7.2044]
[1736352733063,20.0,197.77,197.68,7.2044]
[1736352733543,20.0,197.75,197.68,7.2044]
[1736352734186,20.0,197.78,197.68,7.2044]
[1736352734554,20.0,197.77,197.68,7.2044]
[1736352735055,50.0,197.77,197.68,7.2044]
[1736352735376,20.0,197.73,197.64,7.2143]
[1736352736767,50.0,197.73,197.56,220.1]
[1736352736966,50.0,197.73,197.57,9.2581]
[1736352737363,50.0,197.73,197.58,23.776884]
[1736352737594,50.0,197.73,197.57,9.2581]
[1736352737974,50.0,197.73,197.58,23.776884]
[1736352738878,20.0,197.68,197.57,9.2581]
[1736352739894,20.0,197.64,197.57,9.2581]
[1736352741969,20.0,197.64,197.58,23.776884]
[1736352742170,20.0,197.71,197.58,23.776884]
[1736352743067,20.0,197.67,197.58,23.776884]
[1736352743965,20.0,197.66,197.57,9.2581]
[1736352744164,20.0,197.64,197.57,7.3923]
[1736352744467,20.0,197.64,197.53,81.6]
[1736352745796,20.0,197.65,197.54,23.776884]
[1736352746700,20.0,197.65,197.54,24.53588257]
[1736352747070,20.279362,197.7,197.54,244.63588257]
[1736352747269,20.0,197.67,197.54,243.876884]
[1736352747473,20.0,197.67,197.56,23.776884]
[1736352747690,20.279362,197.7,197.56,23.776884]
[1736352748301,20.0,197.67,197.56,23.776884]
[1736352749589,20.0,197.67,197.58,105.376884]
[1736352752194,20.0,197.66,197.54,81.6]
[1736352752398,20.0,197.64,197.54,81.6]
[1736352752574,20.0,197.64,197.52,7.2926]
[1736352753103,20.0,197.65,197.53,23.776884]
[1736352753308,20.0,197.65,197.52,7.2926]
[1736352754411,81.3,197.68,197.53,244.63599949]
[1736352754614,81.3,197.68,197.53,243.876884]
[1736352754814,20.0,197.65,197.55,23.776884]
[1736352755011,20.279362,197.7,197.55,243.876884]
[1736352755184,20.279362,197.7,197.57,23.776884]
[1736352755386,20.279362,197.7,197.59,23.776884]
[1736352755981,20.0,197.67,197.59,23.776884]
[1736352756482,1.8538,197.71,197.59,23.776884]
[1736352756685,20.0,197.69,197.59,23.776884]
[1736352756898,20.276558,197.72,197.59,24.53567818]
[1736352757115,20.276558,197.72,197.59,244.63567818]
[1736352757291,20.276558,197.72,197.59,243.876884]
[1736352757479,20.0,197.69,197.59,243.876884]
[1736352757809,20.276558,197.72,197.59,243.876884]
[1736352758292,20.0,197.69,197.59,243.876884]
[1736352759811,83.0412,197.76,197.61,105.376884]
[1736352760516,20.0,197.73,197.61,105.376884]
[1736352760697,20.0,197.72,197.61,105.376884]
[1736352761684,20.0,197.72,197.63,23.776884]
[1736352763988,20.0,197.72,197.61,81.6]
[1736352764308,20.0,197.7,197.61,81.6]
[1736352767893,20.0,197.69,197.59,23.776884]
[1736352770327,20.276957,197.71,197.59,23.776884]
[1736352770490,81.3,197.72,197.59,23.776884]
[1736352770829,20.0,197.69,197.59,23.776884]
[1736352773796,20.0,197.69,197.59,243.876884]
[1736352777223,20.276287,197.72,197.53,6.8694]
[1736352777224,50.0,197.67,197.53,6.8694]
[1736352778295,20.0,197.65,197.53,6.8694]
[1736352779111,20.0,197.65,197.54,23.776884]
[1736352780804,20.0,197.65,197.53,6.8694]
[1736352780805,20.0,197.62,197.53,6.8694]
[1736352781111,20.0,197.62,197.46,8.7869]
[1736352781112,20.0,197.6,197.46,8.7869]
[1736352781433,20.0,197.6,197.47,23.776884]
[1736352782207,20.0,197.6,197.46,8.7869]
[1736352782413,20.0,197.54,197.46,8.7869]
[1736352782611,20.0,197.54,197.44,81.6]
[1736352782818,20.0,197.52,197.42,1.731]
[1736352783019,81.3,197.53,197.42,1.731]
[1736352783216,20.0,197.5,197.42,1.731]
[1736352783511,20.0,197.5,197.41,7.1382]
[1736352785535,20.0,197.5,197.42,23.776884]
[1736352786033,20.0,197.55,197.44,23.776884]
[1736352786235,7.78656007,197.58,197.44,162.276884]
[1736352786439,1.8407,197.59,197.44,162.276884]
[1736352786623,20.0,197.57,197.44,162.276884]
[1736352786822,1.8407,197.59,197.44,162.276884]
[1736352787145,20.0,197.57,197.44,162.276884]
[1736352787535,1.8407,197.59,197.44,162.276884]
[1736352787741,1.8407,197.59,197.46,23.776884]
[1736352789639,20.0,197.57,197.46,23.776884]
[1736352790326,20.0,197.57,197.46,24.53621221]
[1736352790834,20.0,197.57,197.46,106.13621221]
[1736352791008,20.0,197.57,197.46,105.376884]
[1736352792238,81.3,197.6,197.48,23.776884]
[1736352792439,1.7318,197.64,197.48,243.876884]
[1736352792746,1.7318,197.64,197.5,23.776884]
[1736352793220,20.0,197.62,197.5,23.776884]
[1736352794137,20.0,197.62,197.52,105.376884]
[1736352794335,81.3,197.65,197.54,23.776884]
[1736352794522,7.78656007,197.68,197.56,23.776884]
[1736352794721,20.0,197.65,197.56,23.776884]
[1736352795031,9.51836007,197.69,197.57,0.75893732]
[1736352795234,7.78656007,197.69,197.58,23.776884]
[1736352795743,7.78656007,197.74,197.6,23.776884]
[1736352796312,20.0,197.71,197.6,23.776884]
[1736352796517,7.78656007,197.74,197.6,23.776884]
[1736352796812,1.8096,197.75,197.61,6.9685]
[1736352797017,1.8096,197.75,197.62,23.776884]
[1736352797361,21.8096,197.75,197.62,23.776884]
[1736352797652,1.8096,197.75,197.62,23.776884]
[1736352799156,1.8096,197.75,197.62,162.276884]
[1736352799350,20.0,197.76,197.62,162.276884]
[1736352802925,20.0,197.76,197.64,23.776884]
[1736352803334,20.0,197.76,197.62,138.5]
[1736352803335,20.0,197.76,197.63,23.776884]
[1736352804359,20.0,197.75,197.62,138.5]
[1736352805350,20.0,197.75,197.62,23.776884]
[1736352805651,20.0,197.76,197.62,163.03560764]
[1736352805853,20.0,197.76,197.62,162.276884]
[1736352806357,20.0,197.76,197.63,0.75864402]
[1736352806559,20.0,197.76,197.64,1.711]
[1736352806862,14.04555381,197.79,197.67,23.776884]
[1736352807026,14.04555381,197.79,197.67,244.63534939]
[1736352807231,14.04555381,197.79,197.67,243.876884]
[1736352807440,20.0,197.76,197.67,243.876884]
[1736352808550,14.04555381,197.79,197.67,243.876884]
[1736352809258,20.0,197.76,197.69,23.776884]
[1736352809438,20.0,197.76,197.7,83.311]
[1736352809831,81.3,197.82,197.71,6.9739]
[1736352810336,1.8036,197.85,197.71,6.9739]
[1736352810542,20.0,197.83,197.71,6.9739]
[1736352810873,20.0,197.82,197.71,6.9739]
[1736352811373,20.0,197.83,197.71,6.9739]
[1736352811731,20.0,197.82,197.71,6.9739]
[1736352811972,20.0,197.83,197.71,6.9739]
[1736352814163,20.0,197.83,197.72,23.776884]
[1736352814365,81.3,197.86,197.72,105.376884]
[1736352814966,81.3,197.86,197.72,243.876884]
[1736352815167,20.0,197.83,197.72,243.876884]
[1736352817261,81.3,197.86,197.74,23.776884]
[1736352817553,20.0,197.83,197.75,9.417]
[1736352821240,20.0,197.82,197.75,9.417]
[1736352821577,20.0,197.81,197.7,7.5551]
[1736352822451,20.0,197.82,197.7,7.5551]
[1736352825372,20.0,197.82,197.71,23.776884]
[1736352827657,20.0,197.82,197.71,105.376884]
[1736352834663,81.3,197.88,197.73,105.376884]
[1736352834869,81.3,197.88,197.75,23.776884]
[1736352835054,81.3,197.92,197.77,105.376884]
[1736352835254,20.0,197.89,197.79,23.776884]
[1736352835454,81.3,197.92,197.79,23.776884]
[1736352836152,20.0,197.89,197.79,23.776884]
[1736352836586,81.3,197.92,197.79,23.776884]
[1736352837189,20.0,197.89,197.79,23.776884]
[1736352840392,20.0,197.89,197.78,7.5084]
[1736352840692,20.0,197.88,197.78,7.5084]
[1736352841393,20.0,197.84,197.78,7.5084]
[1736352842502,20.0,197.83,197.78,7.5084]
[1736352845975,20.0,197.83,197.76,1.7861]
[1736352846176,20.0,197.81,197.73,7.0536]
[1736352846803,20.0,197.79,197.73,7.0536]
[1736352846987,20.0,197.77,197.71,1.8295]
[1736352847605,20.0,197.74,197.68,7.0889]
[1736352850885,20.0,197.72,197.68,7.0889]
[1736352853203,20.0,197.74,197.68,7.0889]
[1736352854005,7.78656007,197.76,197.68,7.0889]
[1736352854389,20.0,197.74,197.68,7.0889]
[1736352855878,101.3,197.74,197.68,7.0889]
[1736352856078,20.0,197.71,197.68,7.0889]
[1736352856274,20.0,197.71,197.64,7.065]
[1736352856474,20.0,197.71,197.61,1.7113]
[1736352856475,101.3,197.7,197.61,1.7113]
[1736352856780,20.0,197.66,197.59,7.065]
[1736352857490,20.0,197.64,197.59,7.065]
[1736352857704,20.0,197.63,197.59,7.065]
[1736352858307,20.0,197.62,197.59,7.065]
[1736352859792,20.0,197.62,197.56,1.7113]
[1736352860494,20.0,197.63,197.56,1.7113]
[1736352862226,20.0,197.62,197.56,1.7113]
[1736352862936,20.0,197.58,197.53,7.065]
[1736352863997,20.0,197.57,197.53,7.065]
[1736352864900,20.0,197.55,197.53,7.065]
[1736352865099,20.0,197.55,197.42,8.7917]
[1736352865300,20.0,197.55,197.43,23.776884]
[1736352865710,20.0,197.55,197.42,8.7917]
[1736352866231,20.0,197.56,197.43,23.776884]
[1736352869627,101.3,197.56,197.43,23.776884]
[1736352871722,81.3,197.61,197.47,23.776884]
[1736352871929,81.3,197.61,197.5,23.776884]
[1736352872308,20.0,197.58,197.5,23.776884]
[1736352872740,81.3,197.61,197.5,23.776884]
[1736352873118,20.0,197.58,197.5,23.776884]
[1736352875121,20.0,197.58,197.49,6.8516]
[1736352875821,101.3,197.57,197.49,6.8516]
[1736352878345,20.0,197.52,197.42,9.0556]
[1736352879145,20.0,197.52,197.43,23.776884]
[1736352879710,20.0,197.52,197.42,9.0556]
[1736352879711,20.0,197.51,197.42,9.0556]
[1736352879923,20.0,197.47,197.42,9.0556]
[1736352880821,20.0,197.47,197.42,7.1933]
[1736352887150,20.0,197.53,197.43,23.776884]
[1736352887323,20.0,197.52,197.43,23.776884]
[1736352887647,20.0,197.51,197.42,7.1933]
[1736352887813,101.3,197.51,197.42,7.1933]
[1736352888013,20.0,197.47,197.38,1.8623]
[1736352891127,20.0,197.46,197.38,1.8623]
[1736352897960,20.0,197.46,197.37,7.2756]
[1736352898327,131.3,197.46,197.33,1.8552]
[1736352898647,1.7457,197.45,197.31,7.3485]
[1736352900426,20.0,197.41,197.31,7.3485]
[1736352900665,20.0,197.41,197.29,81.6]